bitfinex-derivatives/quotes_BNBF0:USTF0_20250617
["timestamp","ask_amount","ask_price","bid_price","bid_amount"]
[1750130654784,2.62216193,655.5,655.18,1.381]
[1750130654979,2.25133119,655.49,655.18,1.381]
[1750130655181,2.7542062,655.49,655.18,1.381]
[1750130655381,0.50287501,655.48,655.18,1.381]
[1750130657386,0.97644196,655.49,655.18,1.381]
[1750130657685,2.75239361,655.53,655.18,1.381]
[1750130657882,3.8967251,655.52,655.18,1.381]
[1750130658187,2.75382517,655.51,655.18,1.381]
[1750130658485,0.97786733,655.5,655.18,1.381]
[1750130658781,2.75376077,655.55,655.18,1.381]
[1750130658986,0.502861,655.54,655.18,1.381]
[1750130660084,0.502861,655.56,655.18,1.381]
[1750130660781,1.48072833,655.56,655.18,1.381]
[1750130661086,1.77579747,655.56,655.18,1.381]
[1750130661282,0.502861,655.56,655.18,1.381]
[1750130661581,1.14289993,655.57,655.18,1.381]
[1750130661782,1.14289993,655.57,655.19,1.514]
[1750130662988,3.89656473,655.57,655.19,1.514]
[1750130663182,2.7536648,655.56,655.19,1.514]
[1750130663386,1.14289993,655.57,655.19,1.514]
[1750130665285,3.89631573,655.57,655.19,1.514]
[1750130665483,2.7534158,655.56,655.19,1.514]
[1750130665685,0.50279468,655.55,655.19,1.514]
[1750130666384,0.50278902,655.55,655.19,1.514]
[1750130667184,1.64568895,655.55,655.19,1.514]
[1750130667384,3.89624391,655.55,655.19,1.514]
[1750130667586,2.75334398,655.54,655.19,1.514]
[1750130667788,0.50278902,655.53,655.2,1.761]
[1750130668790,0.50278902,655.53,655.21,1.321]
[1750130669191,0.5027226,655.53,655.21,1.321]
[1750130669685,2.75296925,655.53,655.21,1.321]
[1750130669887,0.5027226,655.52,655.21,1.321]
[1750130671187,0.50266341,655.52,655.21,1.321]
[1750130671787,2.25024665,655.53,655.21,1.321]
[1750130672092,2.752649,655.52,655.21,1.321]
[1750130672287,2.752649,655.51,655.21,1.321]
[1750130672492,0.97744154,655.5,655.21,1.321]
[1750130672690,2.75265108,655.54,655.21,1.321]
[1750130672895,0.50266484,655.53,655.21,1.321]
[1750130673790,2.75265108,655.53,655.21,1.321]
[1750130673993,0.50266484,655.52,655.21,1.321]
[1750130675090,1.14289993,655.54,655.21,1.321]
[1750130676690,1.14289993,655.55,655.21,1.321]
[1750130677791,1.14289993,655.53,655.21,1.321]
[1750130678490,1.14289993,655.52,655.21,1.321]
[1750130679592,1.14289993,655.53,655.21,1.321]
[1750130679793,1.14289993,655.52,655.21,1.321]
[1750130679994,1.14289993,655.53,655.21,1.321]
[1750130680691,1.64553003,655.53,655.2,1.761]
[1750130680893,1.14289993,655.52,655.2,1.761]
[1750130683492,3.89536695,655.52,655.2,1.761]
[1750130683697,2.75237709,655.51,655.2,1.761]
[1750130683893,0.5026301,655.5,655.2,1.761]
[1750130684093,0.5026301,655.5,655.21,1.598]
[1750130684291,0.50345104,655.5,655.21,1.598]
[1750130684998,1.14289993,655.52,655.21,1.598]
[1750130686495,0.26553028,655.66,655.21,1.598]
[1750130686496,1.14289993,655.51,655.21,1.598]
[1750130687799,2.62363886,655.51,655.21,1.598]
[1750130687997,2.75469675,655.5,655.21,1.598]
[1750130688296,0.50343084,655.49,655.21,1.598]
[1750130689600,1.77745573,655.49,655.21,1.598]
[1750130689898,0.50343084,655.49,655.21,1.598]
[1750130690401,3.39423291,655.5,655.21,1.598]
[1750130690700,2.75487398,655.49,655.21,1.598]
[1750130690901,2.75487398,655.48,655.21,1.598]
[1750130691102,1.48084909,655.47,655.21,1.598]
[1750130691301,3.8980307,655.5,655.21,1.598]
[1750130691502,2.75513077,655.49,655.21,1.598]
[1750130691703,0.503541,655.48,655.21,1.598]
[1750130692799,0.50356508,655.48,655.21,1.598]
[1750130693900,0.50356508,655.48,655.22,1.057]
[1750130694505,2.75483254,655.48,655.22,1.057]
[1750130694802,0.50356508,655.47,655.22,1.057]
[1750130695602,0.50369112,655.47,655.22,1.057]
[1750130695901,0.50383572,655.47,655.22,1.057]
[1750130696402,2.75542167,655.47,655.22,1.057]
[1750130696602,0.50383572,655.46,655.22,1.057]
[1750130696907,0.50383572,655.46,655.23,1.368]
[1750130698404,2.75598126,655.46,655.23,1.368]
[1750130698604,0.50383572,655.45,655.23,1.368]
[1750130698809,1.48137947,655.45,655.23,1.368]
[1750130700611,2.75693951,655.45,655.23,1.368]
[1750130700808,2.75693951,655.44,655.23,1.368]
[1750130701010,0.97754375,655.43,655.23,1.368]
[1750130701207,2.75759523,655.46,655.23,1.368]
[1750130701511,1.48203382,655.45,655.23,1.368]
[1750130702009,1.48203382,655.46,655.23,1.368]
[1750130702212,0.97796381,655.45,655.23,1.368]
[1750130702711,0.50407001,655.46,655.23,1.368]
[1750130702907,0.97807651,655.45,655.23,1.368]
[1750130703113,0.97807651,655.46,655.23,1.368]
[1750130703311,0.97807651,655.45,655.23,1.368]
[1750130703612,0.50407001,655.46,655.23,1.368]
[1750130703815,0.97807651,655.46,655.23,1.368]
[1750130704010,2.75796993,655.49,655.23,1.368]
[1750130704210,1.52394098,655.69,655.23,1.368]
[1750130704211,1.48222402,655.48,655.23,1.368]
[1750130704410,2.75794671,655.52,655.23,1.368]
[1750130704714,2.75794671,655.51,655.23,1.368]
[1750130704910,0.97807651,655.5,655.23,1.368]
[1750130705111,2.25377345,655.55,655.23,1.368]
[1750130705315,1.48219694,655.54,655.23,1.368]
[1750130705515,2.75789388,655.54,655.23,1.368]
[1750130705716,2.75789388,655.53,655.23,1.368]
[1750130706015,2.75789388,655.52,655.23,1.368]
[1750130706209,1.48219326,655.51,655.23,1.368]
[1750130706413,2.75786167,655.56,655.23,1.368]
[1750130706613,1.48217175,655.55,655.23,1.368]
[1750130706812,0.978055,655.54,655.23,1.368]
[1750130709018,0.978055,655.54,655.24,1.37]
[1750130709315,0.97807048,655.54,655.24,1.37]
[1750130710513,1.48219519,655.54,655.24,1.37]
[1750130711120,1.48219519,655.55,655.24,1.37]
[1750130711420,0.97807048,655.54,655.24,1.37]
[1750130711915,0.50412471,655.55,655.24,1.37]
[1750130712116,0.97806499,655.54,655.24,1.37]
[1750130712317,0.50412471,655.56,655.24,1.37]
[1750130712318,0.97806499,655.55,655.24,1.37]
[1750130712518,0.97806499,655.54,655.24,1.37]
[1750130712719,1.48219188,655.55,655.24,1.37]
[1750130712918,0.97806717,655.54,655.24,1.37]
[1750130713117,0.97806717,655.53,655.24,1.37]
[1750130713318,0.97806717,655.52,655.24,1.37]
[1750130713522,1.7798357,655.54,655.24,1.37]
[1750130713523,1.48219188,655.53,655.24,1.37]
[1750130713827,0.97806717,655.52,655.24,1.37]
[1750130714122,0.97806717,655.51,655.24,1.37]
[1750130714319,0.26550496,655.62,655.24,1.37]
[1750130714320,0.97806717,655.5,655.24,1.37]
[1750130714520,0.97806717,655.49,655.24,1.37]
[1750130714718,1.48234256,655.5,655.24,1.37]
[1750130714919,0.97816784,655.49,655.24,1.37]
[1750130715820,1.48234256,655.5,655.24,1.37]
[1750130716020,0.97816784,655.49,655.24,1.37]
[1750130716225,0.97817015,655.49,655.24,1.37]
[1750130716625,1.48234487,655.5,655.24,1.37]
[1750130716828,0.97817015,655.49,655.24,1.37]
[1750130717026,0.97817015,655.48,655.24,1.37]
[1750130717225,0.97817015,655.49,655.24,1.37]
[1750130717426,0.97817015,655.48,655.24,1.37]
[1750130717623,0.97835088,655.49,655.24,1.37]
[1750130718126,0.97835088,655.51,655.24,1.37]
[1750130718326,2.75999918,655.59,655.24,1.37]
[1750130718527,1.48261839,655.58,655.24,1.37]
[1750130718724,0.97835088,655.57,655.24,1.37]
[1750130719028,0.97835088,655.56,655.24,1.37]
[1750130719224,0.97835088,655.55,655.24,1.37]
[1750130719430,1.48261839,655.57,655.24,1.37]
[1750130719623,0.97835088,655.56,655.24,1.37]
[1750130719828,0.97835088,655.55,655.24,1.37]
[1750130720027,2.75999918,655.56,655.24,1.37]
[1750130720327,2.75999918,655.55,655.24,1.37]
[1750130720528,2.75999518,655.54,655.24,1.37]
[1750130720823,0.97835088,655.53,655.24,1.37]
[1750130721025,2.75999323,655.58,655.24,1.37]
[1750130721323,1.48261692,655.57,655.24,1.37]
[1750130721523,0.97835088,655.56,655.24,1.37]
[1750130721729,0.50426604,655.57,655.24,1.37]
[1750130721730,0.97835088,655.55,655.24,1.37]
[1750130722024,0.97835088,655.56,655.24,1.37]
[1750130722230,0.97835088,655.55,655.24,1.37]
[1750130722426,0.97835088,655.56,655.24,1.37]
[1750130722630,0.97835088,655.55,655.24,1.37]
[1750130722827,0.97835088,655.56,655.24,1.37]
[1750130723528,2.75996839,655.57,655.24,1.37]
[1750130723731,2.75996839,655.56,655.24,1.37]
[1750130723928,2.75996839,655.55,655.24,1.37]
[1750130724128,0.97835088,655.54,655.24,1.37]
[1750130724333,2.75995034,655.6,655.24,1.37]
[1750130724532,1.48260278,655.59,655.24,1.37]
[1750130724832,0.97835088,655.58,655.24,1.37]
[1750130725033,0.97835088,655.57,655.25,1.31]
[1750130725231,0.97835088,655.58,655.25,1.31]
[1750130725527,0.97835088,655.57,655.25,1.31]
[1750130725730,0.97835088,655.56,655.25,1.31]
[1750130725930,0.97835088,655.58,655.25,1.31]
[1750130726128,0.97835088,655.57,655.26,1.272]
[1750130726333,0.97835088,655.56,655.26,1.272]
[1750130726531,0.97835088,655.57,655.26,1.272]
[1750130726733,0.50422886,655.58,655.26,1.272]
[1750130726734,0.97835088,655.56,655.26,1.272]
[1750130727031,0.97835088,655.57,655.26,1.272]
[1750130727229,0.97835088,655.56,655.26,1.272]
[1750130727435,0.97835088,655.57,655.26,1.272]
[1750130727729,0.97835088,655.56,655.26,1.272]
[1750130727934,1.14298287,655.53,655.26,1.272]
[1750130728130,0.97835088,655.52,655.26,1.272]
[1750130728332,0.97835088,655.51,655.26,1.272]
[1750130728636,0.97835088,655.5,655.26,1.272]
[1750130728930,1.48439962,655.51,655.26,1.272]
[1750130729131,0.98017418,655.5,655.26,1.272]
[1750130729837,0.98017418,655.49,655.26,1.272]
[1750130730036,0.98017418,655.5,655.26,1.272]
[1750130730232,0.98017418,655.49,655.26,1.272]
[1750130730533,0.98017418,655.5,655.26,1.272]
[1750130730737,0.98017418,655.49,655.26,1.272]
[1750130730937,0.98017418,655.5,655.26,1.272]
[1750130731134,0.98017418,655.49,655.26,1.272]
[1750130731339,0.504218,655.51,655.26,1.272]
[1750130731340,0.98017418,655.5,655.26,1.272]
[1750130731534,0.98017418,655.49,655.26,1.272]
[1750130731734,0.98015972,655.5,655.26,1.272]
[1750130732034,0.98015972,655.49,655.26,1.272]
[1750130732233,0.98015972,655.5,655.26,1.272]
[1750130732438,0.98015972,655.49,655.26,1.272]
[1750130732740,0.504218,655.51,655.26,1.272]
[1750130733139,1.48437772,655.54,655.26,1.272]
[1750130733336,0.98015972,655.53,655.26,1.272]
[1750130733640,0.98015972,655.52,655.26,1.272]
[1750130733940,0.98015972,655.53,655.26,1.272]
[1750130734139,0.98015972,655.52,655.26,1.272]
[1750130734340,0.98015972,655.53,655.26,1.272]
[1750130734540,0.98015972,655.52,655.26,1.272]
[1750130734840,2.76158079,655.53,655.26,1.272]
[1750130735035,2.76158079,655.52,655.26,1.272]
[1750130735242,0.98015972,655.51,655.26,1.272]
[1750130735543,2.76156028,655.59,655.26,1.272]
[1750130735741,0.50419517,655.58,655.26,1.272]
[1750130735942,1.48435489,655.58,655.26,1.272]
[1750130736238,2.76144178,655.63,655.27,1.631]
[1750130736442,1.48431587,655.62,655.27,1.631]
[1750130737043,1.48431587,655.63,655.28,1.035]
[1750130737545,0.98015972,655.62,655.28,1.035]
[1750130737741,2.76144178,655.63,655.28,1.035]
[1750130737944,0.98015972,655.62,655.28,1.035]
[1750130738139,2.76079168,655.68,655.28,1.035]
[1750130738440,1.48412296,655.67,655.28,1.035]
[1750130738645,0.98015972,655.66,655.28,1.035]
[1750130738842,1.48412296,655.67,655.28,1.035]
[1750130739142,0.50396324,655.67,655.28,1.035]
[1750130739341,0.50396324,655.68,655.28,1.035]
[1750130739943,0.50396324,655.69,655.28,1.035]
[1750130742949,0.50231265,655.69,655.28,1.035]
[1750130744746,2.75640136,655.69,655.28,1.035]
[1750130744949,2.75640136,655.68,655.28,1.035]
[1750130745146,1.77771094,655.67,655.28,1.035]
[1750130745446,3.89859381,655.69,655.28,1.035]
[1750130747954,0.50216853,655.66,655.28,1.035]
[1750130748653,0.50206297,655.66,655.28,1.035]
[1750130749050,2.75523659,655.66,655.28,1.035]
[1750130749254,0.97840964,655.65,655.28,1.035]
[1750130749453,2.75521793,655.68,655.28,1.035]
[1750130749653,0.50205772,655.67,655.28,1.035]
[1750130750251,0.50205772,655.68,655.28,1.035]
[1750130753361,2.25236087,655.7,655.28,1.035]
[1750130753962,1.14298287,655.71,655.28,1.035]
[1750130754160,1.14298287,655.71,655.29,1.624]
[1750130756061,1.14298287,655.75,655.29,1.624]
[1750130758163,1.27432609,655.69,655.29,1.624]
[1750130758365,2.25219339,655.74,655.29,1.624]
[1750130758558,0.50188353,655.73,655.29,1.624]
[1750130759763,0.50188353,655.75,655.29,1.624]
[1750130761170,1.77715962,655.75,655.29,1.624]
[1750130761369,2.7555274,655.76,655.29,1.624]
[1750130761665,0.50176951,655.75,655.29,1.624]
[1750130761868,2.7555274,655.75,655.29,1.624]
[1750130762062,2.7555274,655.74,655.29,1.624]
[1750130762265,2.75560159,655.73,655.29,1.624]
[1750130762465,0.97844197,655.72,655.29,1.624]
[1750130762664,2.75573488,655.77,655.29,1.624]
[1750130762867,0.5018069,655.76,655.29,1.624]
[1750130763766,1.27546869,655.76,655.29,1.624]
[1750130763970,2.75569671,655.77,655.29,1.624]
[1750130764167,0.50180026,655.76,655.29,1.624]
[1750130765875,0.50180026,655.76,655.3,1.069]
[1750130766369,2.75569671,655.76,655.3,1.069]
[1750130766568,1.14298287,655.77,655.3,1.069]
[1750130767868,1.14298287,655.79,655.3,1.069]
[1750130768073,3.89883616,655.79,655.3,1.069]
[1750130768273,2.75585329,655.78,655.3,1.069]
[1750130768477,0.50182869,655.77,655.3,1.069]
[1750130769173,0.50186134,655.77,655.3,1.069]
[1750130769376,2.75588594,655.77,655.3,1.069]
[1750130769573,0.50186134,655.76,655.3,1.069]
[1750130771073,1.48049309,655.76,655.3,1.069]
[1750130771379,0.50186134,655.76,655.3,1.069]
[1750130772875,0.97867552,655.76,655.3,1.069]
[1750130773180,2.7556742,655.84,655.3,1.069]
[1750130773378,0.50148948,655.83,655.3,1.069]
[1750130773578,0.50148948,655.83,655.31,1.14]
[1750130774073,1.480165,655.83,655.31,1.14]
[1750130774275,0.50148948,655.84,655.31,1.14]
[1750130775079,0.50151635,655.84,655.31,1.14]
[1750130776879,2.75551174,655.85,655.31,1.14]
[1750130777081,0.50151635,655.84,655.32,1.405]
[1750130777679,1.77702555,655.84,655.32,1.405]
[1750130777979,2.75542108,655.84,655.32,1.405]
[1750130778181,0.50148563,655.83,655.32,1.405]
[1750130778584,0.97842625,655.84,655.32,1.405]
[1750130778784,0.26542699,655.86,655.32,1.405]
[1750130780280,0.26542699,655.86,655.33,1.408]
[1750130781182,3.02084416,655.86,655.33,1.408]
[1750130781383,2.75541717,655.85,655.33,1.408]
[1750130781680,0.97842625,655.85,655.33,1.408]
[1750130781982,0.26542699,655.86,655.33,1.408]
[1750130786589,0.9784746,655.9,655.33,1.408]
[1750130786789,0.9784746,655.96,655.33,1.408]
[1750130786987,0.26537538,656.0,655.33,1.408]
[1750130790491,1.24347405,656.0,655.33,1.408]
[1750130790685,0.26537538,656.0,655.33,1.408]
[1750130791082,0.26537538,656.0,655.34,1.636]
[1750130793789,0.26537538,656.0,655.35,1.256]
[1750130796893,1.7445841,656.0,655.35,1.256]
[1750130797588,1.74436085,656.0,655.35,1.256]
[1750130799088,2.88734372,656.0,655.35,1.256]
[1750130799288,1.77534579,655.99,655.35,1.256]
[1750130799491,2.75322638,655.99,655.35,1.256]
[1750130799688,0.50110488,655.98,655.35,1.256]
[1750130799893,1.64408775,655.98,655.35,1.256]
[1750130800089,3.89620925,655.98,655.35,1.256]
[1750130800289,1.47902964,655.97,655.35,1.256]
[1750130800491,2.75327192,655.97,655.35,1.256]
[1750130800691,2.75327192,655.96,655.35,1.256]
[1750130800994,2.75327192,655.95,655.35,1.256]
[1750130801197,0.97788059,655.94,655.35,1.256]
[1750130801495,1.14298287,655.99,655.35,1.256]
[1750130801496,2.75299571,655.98,655.35,1.256]
[1750130801697,0.50107096,655.97,655.35,1.256]
[1750130801894,1.47855897,655.97,655.35,1.256]
[1750130802094,0.50107096,655.97,655.35,1.256]
[1750130803095,1.14298287,655.99,655.35,1.256]
[1750130804597,1.40835825,656.0,655.35,1.256]
[1750130805900,4.16029485,656.0,655.35,1.256]
[1750130806200,3.89492201,655.99,655.35,1.256]
[1750130806496,2.75193914,655.98,655.35,1.256]
[1750130806799,2.75193914,655.97,655.35,1.256]
[1750130806996,2.75193914,655.96,655.35,1.256]
[1750130807200,2.75193984,655.95,655.35,1.256]
[1750130807398,0.97726602,655.94,655.35,1.256]
[1750130807598,2.75193912,655.98,655.35,1.256]
[1750130807802,0.5009461,655.97,655.35,1.256]
[1750130808599,2.75193912,655.97,655.35,1.256]
[1750130808803,2.75193912,655.96,655.35,1.256]
[1750130809003,1.40835825,656.0,655.35,1.256]
[1750130809004,0.97726602,655.95,655.35,1.256]
[1750130809204,2.75181566,655.99,655.35,1.256]
[1750130809401,0.5009113,655.98,655.35,1.256]
[1750130811702,1.40835825,656.0,655.35,1.256]
[1750130812202,1.14298287,655.99,655.35,1.256]
[1750130813206,1.14298287,655.98,655.35,1.256]
[1750130814007,1.14298287,655.99,655.35,1.256]
[1750130815200,3.89494675,655.99,655.35,1.256]
[1750130815404,2.75196388,655.98,655.35,1.256]
[1750130815702,2.25101326,655.98,655.35,1.256]
[1750130815907,0.97727482,655.97,655.35,1.256]
[1750130816105,0.26537538,656.0,655.36,1.435]
[1750130816302,1.74363804,656.0,655.36,1.435]
[1750130817405,0.26537538,656.0,655.36,1.435]
[1750130818703,1.40835825,656.0,655.36,1.435]
[1750130818902,0.26537538,656.0,655.36,1.435]
[1750130819505,1.40835825,656.0,655.36,1.435]
[1750130822005,1.14298287,655.97,655.36,1.435]
[1750130822205,1.14298287,655.96,655.36,1.435]
[1750130822804,1.14298287,655.95,655.36,1.435]
[1750130823105,1.14298287,655.91,655.36,1.435]
[1750130823311,1.14298287,655.89,655.36,1.435]
[1750130824008,1.14298287,655.88,655.36,1.435]
[1750130825404,3.8996899,655.88,655.36,1.435]
[1750130825607,2.75766922,655.87,655.36,1.435]
[1750130825806,0.50141868,655.86,655.36,1.435]
[1750130826711,2.75766922,655.86,655.36,1.435]
[1750130826907,0.50141868,655.85,655.36,1.435]
[1750130827411,0.50141868,655.85,655.35,1.256]
[1750130828208,0.50141868,655.86,655.35,1.256]
[1750130828412,1.14298287,655.87,655.35,1.256]
[1750130829609,1.14298287,655.86,655.35,1.256]
[1750130831012,3.90218674,655.86,655.36,1.099]
[1750130831210,2.7601676,655.85,655.36,1.099]
[1750130831413,0.5015668,655.84,655.36,1.099]
[1750130832009,1.14298287,655.83,655.36,1.099]
[1750130832213,3.90315047,655.83,655.36,1.099]
[1750130832410,2.7601676,655.82,655.36,1.099]
[1750130832614,0.5015668,655.81,655.36,1.099]
[1750130832810,2.7601676,655.81,655.36,1.099]
[1750130833014,0.5015668,655.8,655.36,1.099]
[1750130833212,2.7601676,655.8,655.36,1.099]
[1750130833411,0.5015668,655.79,655.36,1.099]
[1750130834014,1.78226341,655.79,655.36,1.099]
[1750130834217,0.50330301,655.79,655.36,1.099]
[1750130836418,1.14298287,655.81,655.36,1.099]
[1750130838617,1.14298287,655.8,655.36,1.099]
[1750130838818,1.14298287,655.81,655.36,1.099]
[1750130839918,1.14298287,655.8,655.36,1.099]
[1750130840618,0.50330301,655.9,655.36,1.099]
[1750130840619,1.14298287,655.81,655.36,1.099]
[1750130842225,1.14298287,655.8,655.36,1.099]
[1750130846924,1.14298287,655.79,655.36,1.099]
[1750130847325,1.14298287,655.82,655.36,1.099]
[1750130848730,1.14298287,655.81,655.36,1.099]
[1750130848926,1.14298287,655.82,655.36,1.099]
[1750130850529,1.14298287,655.81,655.36,1.099]
[1750130851231,0.26537538,656.0,655.36,1.099]
[1750130854031,0.26537538,656.0,655.28,1.247]
[1750130855031,0.26537538,656.0,655.29,1.647]
[1750130856530,0.26537538,656.0,655.3,1.507]
[1750130859833,0.26537538,656.0,655.31,1.252]
[1750130861530,0.26537538,656.0,655.32,1.198]
[1750130872943,0.26537538,656.0,655.33,1.641]
[1750130875446,0.50345619,655.89,655.33,1.641]
[1750130875649,0.26537538,656.0,655.33,1.641]
[1750130875650,0.50345619,655.88,655.33,1.641]
[1750130875948,0.50345619,655.87,655.33,1.641]
[1750130876248,0.50345619,655.86,655.33,1.641]
[1750130876446,0.50345619,655.85,655.33,1.641]
[1750130876648,0.50345619,655.84,655.33,1.641]
[1750130876847,0.50345619,655.83,655.33,1.641]
[1750130877048,0.50345619,655.99,655.33,1.641]
[1750130877251,0.50345619,655.98,655.33,1.641]
[1750130877449,0.50345619,655.97,655.33,1.641]
[1750130877652,0.50345619,655.96,655.33,1.641]
[1750130877850,0.50345619,655.95,655.33,1.641]
[1750130878048,0.50345619,655.94,655.33,1.641]
[1750130878348,0.50345619,655.93,655.33,1.641]
[1750130878548,0.50345619,655.92,655.33,1.641]
[1750130878753,0.50345619,655.91,655.33,1.641]
[1750130879049,0.50345619,655.9,655.33,1.641]
[1750130879350,0.50345619,655.89,655.33,1.641]
[1750130879548,0.50345619,655.88,655.33,1.641]
[1750130879749,0.50345619,655.87,655.33,1.641]
[1750130879952,0.50345619,655.86,655.33,1.641]
[1750130880153,0.50345619,655.85,655.33,1.641]
[1750130880355,0.50345619,655.99,655.33,1.641]
[1750130880550,0.50345619,655.98,655.33,1.641]
[1750130880849,0.50345619,655.97,655.33,1.641]
[1750130881052,0.50345619,655.96,655.33,1.641]
[1750130881251,0.50345619,655.95,655.33,1.641]
[1750130881552,0.50345619,655.94,655.33,1.641]
[1750130881855,0.50345619,655.93,655.33,1.641]
[1750130882154,0.50345619,655.92,655.33,1.641]
[1750130882353,0.50345619,655.91,655.33,1.641]
[1750130882650,0.26537538,656.0,655.33,1.641]
[1750130882651,0.50345619,655.9,655.33,1.641]
[1750130882855,0.50345619,655.89,655.33,1.641]
[1750130883155,2.75346839,655.88,655.33,1.641]
[1750130883356,2.75346839,655.87,655.33,1.641]
[1750130883656,2.75473583,655.86,655.33,1.641]
[1750130883854,2.75473583,655.85,655.33,1.641]
[1750130884057,2.75473583,655.84,655.33,1.641]
[1750130884254,2.75473583,655.83,655.33,1.641]
[1750130884553,2.75614579,655.82,655.33,1.641]
[1750130884756,2.75614579,655.81,655.33,1.641]
[1750130885056,2.75614579,655.8,655.33,1.641]
[1750130885254,2.75614579,655.79,655.33,1.641]
[1750130885454,2.75614579,655.78,655.33,1.641]
[1750130885753,2.75614579,655.77,655.33,1.641]
[1750130885952,2.75614579,655.76,655.33,1.641]
[1750130886155,2.75614579,655.75,655.33,1.641]
[1750130886356,2.75560176,655.74,655.33,1.641]
[1750130886557,2.75560176,655.73,655.34,1.077]
[1750130886752,2.75560176,655.72,655.34,1.077]
[1750130887056,2.75560176,655.71,655.34,1.077]
[1750130887352,2.75560176,655.7,655.34,1.077]
[1750130887554,0.97717268,655.69,655.34,1.077]
[1750130887757,2.75557301,655.99,655.34,1.077]
[1750130888052,2.75557301,655.98,655.34,1.077]
[1750130888254,2.75557301,655.97,655.34,1.077]
[1750130888452,2.75557301,655.96,655.34,1.077]
[1750130888652,2.75557301,655.95,655.34,1.077]
[1750130888855,2.75557301,655.94,655.34,1.077]
[1750130889054,2.75557301,655.93,655.34,1.077]
[1750130889254,2.75527198,655.92,655.34,1.077]
[1750130889454,2.75527198,655.91,655.34,1.077]
[1750130889753,2.75527198,655.9,655.34,1.077]
[1750130890055,2.75527198,655.89,655.34,1.077]
[1750130890253,2.75527198,655.88,655.34,1.077]
[1750130890454,2.75527198,655.87,655.34,1.077]
[1750130890659,2.75527198,655.86,655.34,1.077]
[1750130890954,2.75527198,655.85,655.34,1.077]
[1750130891157,2.75527198,655.84,655.34,1.077]
[1750130891358,2.75527198,655.83,655.34,1.077]
[1750130891557,2.75527198,655.82,655.34,1.077]
[1750130891759,1.77806212,655.81,655.34,1.077]
[1750130892057,1.14195103,655.71,655.34,1.077]
[1750130892262,0.97690054,655.7,655.34,1.077]
[1750130892561,2.11885157,655.69,655.34,1.077]
[1750130892761,2.7548321,655.68,655.34,1.077]
[1750130892958,1.47958387,655.67,655.34,1.077]
[1750130893758,1.47958387,655.68,655.34,1.077]
[1750130893962,0.97690054,655.67,655.34,1.077]
[1750130894263,1.47958387,655.68,655.34,1.077]
[1750130894563,1.47958387,655.68,655.35,1.171]
[1750130894863,1.14195103,655.7,655.35,1.171]
[1750130895061,0.97678343,655.69,655.35,1.171]
[1750130895260,2.75450169,655.7,655.35,1.171]
[1750130895467,1.4794065,655.69,655.35,1.171]
[1750130895664,0.97678343,655.68,655.35,1.171]
[1750130895865,1.4794065,655.69,655.35,1.171]
[1750130896163,0.97678343,655.68,655.35,1.171]
[1750130896763,0.97677028,655.68,655.35,1.171]
[1750130897161,0.50261629,655.69,655.35,1.171]
[1750130897466,1.47938657,655.69,655.35,1.171]
[1750130897665,1.47938657,655.71,655.35,1.171]
[1750130897865,1.4792879,655.71,655.35,1.171]
[1750130899467,0.50261629,655.71,655.35,1.171]
[1750130899666,1.77754687,655.71,655.35,1.171]
[1750130899864,1.4792879,655.72,655.35,1.171]
[1750130900562,2.75384174,655.72,655.35,1.171]
[1750130900868,2.75384174,655.71,655.35,1.171]
[1750130901064,2.75384174,655.7,655.35,1.171]